bitfinex/quotes_ETHUSD_20220117
["timestamp","ask_amount","ask_price","bid_price","bid_amount"]
[1642440484644,0.7789361,3210.2,3209.5,0.00341054]
[1642440485041,0.7789361,3210.2,3209.2,0.00511581]
[1642440485241,0.7789361,3210.2,3209.7,1.35110973]
[1642440485645,2.66529307,3210.1,3209.8,0.00170527]
[1642440488205,2.66529307,3210.1,3209.9,0.1942237]
[1642440488602,8.99750947,3210.5,3209.9,0.1942237]
[1642440488603,2.55336071,3210.4,3209.9,0.1942237]
[1642440488901,2.55336071,3210.4,3209.9,1.0614237]
[1642440488902,0.00113684,3210.3,3209.9,1.0614237]
[1642440489302,0.00113684,3210.3,3209.9,1.3614237]
[1642440489901,0.00113684,3210.3,3210.0,0.77867]
[1642440490103,0.00113684,3210.3,3210.0,1.77867]
[1642440490500,0.00113684,3210.3,3210.1,18.11]
[1642440490902,0.00113684,3210.3,3210.2,19.28416182]
[1642440491143,0.00113684,3210.3,3210.2,37.69416182]
[1642440492547,0.00113684,3210.3,3210.2,37.99416182]
[1642440493149,1.49123578,3211.3,3210.2,37.99416182]
[1642440493150,1.49123578,3211.3,3210.5,18.11]
[1642440493353,1.49123578,3211.3,3210.7,0.77835]
[1642440493549,0.00511581,3211.2,3210.8,1.27415687]
[1642440493951,1.49123578,3211.3,3210.8,2.27415687]
[1642440493952,0.00454739,3211.1,3210.8,2.27415687]
[1642440494351,0.00397897,3211.0,3210.8,2.27415687]
[1642440494554,0.00397897,3211.0,3210.8,1.27415687]
[1642440494750,0.00341054,3210.9,3210.8,1.27415687]
[1642440495796,0.00341054,3210.9,3210.8,8.17415687]
[1642440496392,0.00341054,3210.9,3210.8,1.27415687]
[1642440496593,0.00341054,3210.9,3210.3,0.448]
[1642440496894,0.00284212,3210.8,3210.4,0.77848]
[1642440497097,0.00284212,3210.8,3210.4,2.02198]
[1642440497294,0.0022737,3210.7,3210.4,3.02198]
[1642440497796,0.00170527,3210.6,3210.5,21.47176849]
[1642440498198,0.00170527,3210.6,3210.5,22.47176849]
[1642440499048,0.00170527,3210.6,3210.5,22.83517643]
[1642440499947,0.00170527,3210.6,3210.5,21.83517643]
[1642440500350,0.00170527,3210.6,3210.5,22.61371643]
[1642440500548,1.49123578,3211.6,3210.6,11.1]
[1642440500949,0.00511582,3211.5,3210.6,11.1]
[1642440501153,0.00511582,3211.5,3211.2,1.14652201]
[1642440501351,0.00454739,3211.4,3211.2,1.14652201]
[1642440501753,0.00397897,3211.3,3211.2,1.14652201]
[1642440502155,0.00397897,3211.3,3210.5,0.36340794]
[1642440502601,0.00341054,3211.2,3210.3,0.36340794]
[1642440503001,0.00284212,3211.1,3210.4,0.00113684]
[1642440503201,1.32888072,3210.8,3210.4,0.00113684]
[1642440504402,1.49123578,3210.9,3210.2,0.00227369]
[1642440504702,0.00113685,3210.8,3210.2,0.00227369]
[1642440505101,0.00113685,3210.8,3210.0,0.00341054]
[1642440505302,1.34810812,3210.5,3210.0,0.00341054]
[1642440505503,0.77997065,3210.8,3210.0,0.00341054]
[1642440505704,0.77997065,3210.8,3209.8,0.00454738]
[1642440505902,0.77997065,3210.8,3209.6,0.00568423]
[1642440506550,1.3459263,3210.2,3209.6,0.00568423]
[1642440507551,3.1769,3210.7,3209.6,0.00568423]
[1642440507752,4.66813578,3210.7,3209.6,0.00568423]
[1642440508749,1.18220073,3210.5,3209.6,0.00568423]
[1642440508956,1.4408692,3210.0,3209.6,0.00568423]
[1642440509352,2.66514981,3210.6,3209.6,0.00568423]
[1642440509553,2.66514981,3210.6,3209.6,1.00568423]
[1642440509907,2.66514981,3210.6,3209.7,0.00511581]
[1642440510095,2.66514981,3209.9,3209.7,0.00511581]
[1642440511304,1.18683105,3210.3,3209.7,0.00511581]
[1642440511305,2.66514981,3210.2,3209.7,0.00511581]
[1642440511906,3.41314981,3210.2,3209.7,0.00511581]
[1642440512508,1.53243628,3209.8,3209.7,0.00511581]
[1642440512706,2.85992364,3209.8,3209.1,0.00852635]
[1642440512905,1.32748736,3209.8,3208.9,0.00966319]
[1642440513308,2.96514981,3210.2,3208.9,0.00966319]
[1642440513505,2.96514981,3210.2,3209.0,1.55775]
[1642440513949,2.66514981,3209.8,3209.4,1.27887974]
[1642440514154,2.66514981,3209.8,3209.1,0.30852635]
[1642440514349,1.19879991,3209.7,3209.5,0.00625265]
[1642440514552,1.19879991,3209.7,3209.2,0.00795792]
[1642440514950,1.19879991,3209.7,3209.1,0.00852635]
[1642440515150,2.66514981,3210.0,3209.2,1.20249475]
[1642440515650,2.66514981,3210.0,3209.3,0.0073895]
[1642440516050,2.66514981,3210.0,3209.3,0.3073895]
[1642440516349,3.99756279,3210.1,3209.4,0.00682108]
[1642440517402,2.66514981,3210.0,3209.4,0.00682108]
[1642440518394,2.66514981,3210.0,3209.1,0.25216264]
[1642440518798,2.66514981,3210.0,3209.2,0.00795792]
[1642440518998,1.39803239,3209.6,3209.2,0.00795792]
[1642440519798,1.39803239,3209.6,3209.0,0.00909477]
[1642440520198,1.39803239,3209.6,3208.9,0.00966319]
[1642440520399,1.39803239,3209.6,3208.9,1.35764161]
[1642440520599,2.66514981,3209.5,3208.9,1.35764161]
[1642440520801,2.66514981,3209.5,3209.0,0.00909477]
[1642440521242,2.66514981,3209.5,3208.9,0.00966319]
[1642440521442,2.66514981,3209.5,3208.8,0.01023162]
[1642440522244,2.66514981,3209.5,3208.9,0.77893]
[1642440522443,2.66514981,3209.5,3208.9,1.07893]
[1642440522644,2.66514981,3209.5,3209.0,0.00909477]
[1642440523446,2.66514981,3209.5,3208.8,0.01023162]
[1642440523646,2.66514981,3209.5,3208.9,0.77891]
[1642440524048,2.66514981,3209.5,3209.0,0.00909477]
[1642440524249,1.39803239,3209.6,3209.0,0.00909477]
[1642440525298,2.66554899,3209.5,3208.9,0.78859319]
[1642440525497,2.66554899,3209.5,3208.9,1.00966319]
[1642440525698,2.66554899,3209.5,3209.0,0.00909477]
[1642440526399,2.66554899,3209.5,3208.8,0.01023162]
[1642440526998,2.66554899,3209.5,3208.9,0.77892]
[1642440527401,2.66554899,3209.5,3209.0,0.00909477]
[1642440527999,1.11954896,3209.3,3209.1,0.05404862]
[1642440528201,1.11954896,3209.3,3209.0,0.00909477]
[1642440528400,1.11954896,3209.3,3209.2,0.00795792]
[1642440528648,1.26563408,3209.3,3208.7,0.01080004]
[1642440529258,2.66554899,3209.2,3208.7,0.01080004]
[1642440529654,4.18655733,3209.2,3208.6,0.01136847]
[1642440529858,4.18655733,3209.2,3208.5,0.74039847]
[1642440530056,4.18655733,3209.2,3208.4,3.6531]
[1642440530057,0.00284212,3209.1,3208.3,2.64287696]
[1642440530260,0.78208252,3209.1,3208.3,2.64287696]
[1642440530456,0.0022737,3209.0,3208.4,0.00113684]
[1642440530858,0.00170528,3208.9,3208.4,0.00113684]
[1642440531258,0.00113685,3208.8,3208.4,0.00113684]
[1642440531457,1.11272122,3208.6,3208.4,0.00113684]
[1642440531659,1.11272122,3208.6,3208.3,0.49477313]
[1642440532058,1.11272122,3208.6,3207.7,4.925]
[1642440532259,1.11272122,3208.6,3207.7,3.7087]
[1642440532552,1.11272122,3208.6,3207.8,0.00341054]
[1642440533841,2.66554899,3208.5,3207.8,0.00341054]
[1642440534438,6.21337425,3208.5,3207.8,0.00341054]
[1642440534639,1.448,3208.4,3207.8,0.00341054]
[1642440534839,3.24782526,3208.3,3207.7,0.00397897]
[1642440535046,0.448,3208.2,3207.7,0.00397897]
[1642440535239,9.28039325,3208.1,3207.7,0.00397897]
[1642440535439,1.23452327,3208.0,3207.7,0.00397897]
[1642440535639,1.23452327,3208.0,3207.5,1.6328416]
[1642440535640,6.2342,3207.9,3207.6,0.00454739]
[1642440537657,6.2342,3207.9,3207.5,1.58738899]
[1642440537954,0.00113685,3207.8,3207.7,1.55704484]
[1642440538355,0.00113685,3207.8,3207.7,11.35704484]
[1642440538752,0.00113685,3207.8,3207.7,11.65704484]
[1642440538952,0.00113685,3207.8,3207.7,1.85704484]
[1642440539354,0.00113685,3207.8,3207.5,1.53738899]
[1642440540503,0.00113685,3207.8,3207.6,1.26290153]
[1642440540702,0.00113685,3207.8,3207.7,0.3]
[1642440541107,1.26567905,3207.8,3207.5,1.53738899]
[1642440541308,0.00113685,3207.8,3207.5,1.53738899]
[1642440542406,1.46838186,3207.8,3207.5,1.53738899]
[1642440542814,2.29289331,3207.8,3207.5,1.48738899]
[1642440544054,2.21638186,3207.8,3207.5,1.48738899]
[1642440544256,20.3,3207.7,3206.0,0.186569]
[1642440544459,9.30665121,3207.6,3206.0,0.186569]
[1642440544653,5.598,3207.2,3206.1,0.00852635]
[1642440544953,0.77994,3206.9,3206.1,0.00852635]
[1642440545150,1.40964665,3206.5,3206.1,0.00852635]
[1642440545357,6.6822,3206.4,3206.1,0.00852635]
[1642440545555,6.6822,3206.4,3205.0,0.0396]
[1642440545556,0.01219558,3206.2,3205.0,0.0396]
[1642440545755,6.79531941,3206.4,3205.2,0.13706748]
[1642440545756,0.00113685,3206.3,3205.2,0.13706748]
[1642440546051,0.00113685,3206.3,3205.3,0.00454739]
[1642440546452,0.00113685,3206.3,3206.1,1.35439036]
[1642440546752,0.00113685,3206.3,3205.3,0.00454739]
[1642440546953,0.00113685,3206.3,3205.3,3.25237265]
[1642440547152,0.00113685,3206.3,3205.3,0.00454739]
[1642440547394,0.00113685,3206.3,3205.4,0.00397897]
[1642440547395,1.56111255,3206.3,3205.4,0.00397897]
[1642440547602,0.7799707,3206.1,3205.4,0.00397897]
[1642440547800,6.86527511,3206.1,3204.4,3.21652548]
[1642440548006,0.01218279,3205.9,3204.0,2.74573584]
[1642440548201,0.01218279,3205.9,3204.5,0.00511581]
[1642440548202,1.46134591,3204.6,3204.5,0.00511581]
[1642440548500,0.01218279,3205.9,3204.5,0.00511581]
[1642440548501,1.59846788,3205.5,3204.5,0.00511581]
[1642440548705,1.0801243,3205.4,3204.5,0.00511581]
[1642440548900,1.63991623,3205.4,3204.5,0.00511581]
[1642440549105,6.2342,3205.3,3204.5,0.00511581]
[1642440549302,6.9822,3205.3,3204.5,0.00511581]
[1642440549501,6.9822,3205.3,3204.2,0.00682108]
[1642440549702,1.26974184,3204.7,3204.1,0.0073895]
[1642440550305,3.41716184,3204.7,3204.1,0.0073895]
[1642440550509,3.41716184,3204.7,3202.1,0.01218336]
[1642440550510,5.598,3204.2,3202.1,0.01218336]
[1642440550707,5.598,3204.2,3201.2,1.00305]
[1642440550708,5.598,3203.4,3201.3,5.16958321]
[1642440550904,5.598,3203.4,3201.3,2.26958321]
[1642440550905,0.05180682,3201.8,3201.3,2.26958321]
[1642440551152,0.448,3201.7,3201.3,1.91958321]
[1642440551353,0.448,3201.7,3201.4,3.24782526]
[1642440551354,6.6822,3201.7,3201.4,3.24782526]
[1642440551568,0.16969191,3202.6,3201.5,20.3]
[1642440551755,0.448,3203.1,3201.6,3.24782526]
[1642440551954,0.13819997,3203.3,3201.6,3.24782526]
[1642440552158,0.448,3203.5,3203.0,1.12694425]
[1642440552355,0.448,3203.5,3201.9,3.24782526]
[1642440552556,0.24724597,3204.3,3201.9,3.24782526]
[1642440552557,4.00657151,3204.0,3203.1,0.00568424]
[1642440552759,4.00657151,3204.0,3202.5,0.01259081]
[1642440552959,4.00657151,3204.0,3202.6,0.00852635]
[1642440553161,4.00657151,3204.0,3202.6,3.25635161]
[1642440553358,4.00657151,3204.0,3203.3,1.19400127]
[1642440553659,4.00657151,3204.0,3203.6,0.3]
[1642440554062,4.00657151,3204.0,3203.7,0.00227369]
[1642440554261,4.00657151,3204.0,3203.6,3.50009895]
[1642440554458,0.00113684,3203.9,3203.6,3.79449895]
[1642440554658,0.00113684,3203.9,3203.7,0.448]
[1642440554919,0.00113684,3203.9,3203.7,0.748]
[1642440555319,5.63600726,3205.1,3203.9,16.2]
[1642440555520,5.63600726,3205.1,3204.0,3.24782526]
[1642440555725,5.63600726,3205.1,3204.1,1.53291154]
[1642440555726,5.49780729,3205.1,3204.1,1.53291154]
[1642440555920,5.49780729,3205.1,3204.2,4.16578075]
[1642440556119,5.49780729,3205.1,3205.0,1.28015272]
[1642440556321,4.00657151,3205.7,3205.0,1.28015272]
[1642440556523,4.00657151,3205.7,3205.1,3.11473666]
[1642440556721,4.00657151,3205.7,3205.0,1.28015272]
[1642440556927,4.00657151,3205.7,3205.0,1.58015272]
[1642440557525,0.03598371,3206.0,3205.0,1.58015272]
[1642440557526,1.49123578,3205.5,3205.0,1.58015272]
[1642440558127,1.49123578,3205.5,3205.2,1.41250751]
[1642440558328,1.49123578,3205.5,3205.0,1.28015272]
[1642440559157,3.72700651,3205.5,3205.0,1.28015272]
[1642440559356,1.49123578,3205.3,3205.0,1.28015272]
[1642440559556,1.49123578,3205.3,3204.6,0.448]
[1642440559557,1.49123578,3205.3,3203.9,5.094]
[1642440559756,1.49123578,3205.3,3204.2,0.448]
[1642440559757,0.00738951,3205.2,3204.2,0.448]
[1642440559956,0.00738951,3205.2,3203.9,5.094]
[1642440559957,0.00738951,3205.2,3203.9,1.2111]
[1642440560158,0.00682108,3205.1,3203.9,1.2111]
[1642440560558,1.49123578,3205.3,3203.9,1.2111]
[1642440560559,0.00625266,3205.0,3204.7,1.35031163]
[1642440560759,0.00625266,3205.0,3204.8,0.05933262]
[1642440560960,0.00568424,3204.9,3204.7,1.65031163]
[1642440561356,0.00511581,3204.8,3204.7,1.65031163]
[1642440561557,0.00511581,3204.8,3204.7,2.56420148]
[1642440561757,0.00511581,3204.8,3204.7,1.21388985]
[1642440562409,2.23577073,3205.3,3204.7,1.21388985]
[1642440562410,2.23577073,3205.3,3204.7,1.81518985]
[1642440562609,2.23577073,3205.1,3204.7,2.65088985]
[1642440562810,0.00113685,3205.0,3204.8,1.31092048]
[1642440563010,0.00113685,3205.0,3204.8,20.42092048]
[1642440563209,0.00113685,3205.0,3204.8,2.31092048]
[1642440564611,0.00113685,3205.0,3204.9,31.16]
[1642440564812,0.00113685,3205.0,3204.9,14.2938]
[1642440565012,0.00113685,3205.0,3204.9,40.6538]
[1642440565314,2.18690758,3205.6,3205.0,17.25]
[1642440565518,2.18690758,3205.6,3204.9,1.3]
[1642440565714,0.00284212,3205.5,3205.1,1.0]
[1642440565912,0.00284212,3205.5,3205.2,0.3]
[1642440566173,0.00227369,3205.4,3205.2,0.3]
[1642440566375,0.00227369,3205.4,3205.3,1.41236852]
[1642440566575,3.11870659,3206.2,3205.3,1.41236852]
[1642440566776,3.11870659,3206.2,3205.3,1.71236852]
[1642440566975,0.00625266,3206.1,3205.3,1.71236852]
[1642440567376,3.11870659,3206.2,3204.8,1.31092048]
[1642440567377,0.01295333,3205.8,3204.8,1.31092048]
[1642440567779,0.01295333,3205.8,3204.0,3.8525]
[1642440567780,0.00397896,3205.7,3204.0,3.8525]
[1642440568176,0.00341054,3205.6,3204.1,0.00511581]
[1642440568379,0.78361834,3205.6,3205.2,1.29143734]
[1642440568580,0.38795333,3205.8,3205.2,2.48656223]
[1642440568581,2.98050662,3205.3,3205.2,2.48656223]
[1642440569080,0.00170527,3205.3,3205.2,2.48656223]
[1642440569478,0.00170527,3205.3,3204.7,0.38714208]
[1642440569677,0.00170527,3205.3,3204.7,0.375]
[1642440569908,0.00113685,3205.2,3204.8,0.00113685]
[1642440570309,0.00682108,3206.2,3204.8,0.00113685]
[1642440570710,0.00682108,3206.2,3204.5,0.00284212]
[1642440570909,0.00682108,3206.2,3204.5,18.11284212]
[1642440571314,0.00682108,3206.2,3204.6,1.00227369]
[1642440571511,0.00682108,3206.2,3204.6,1.30227369]
[1642440571711,0.00682108,3206.2,3204.7,0.00170527]
[1642440571910,1.47239473,3205.6,3204.7,0.00170527]
[1642440572309,0.00284212,3205.5,3204.6,0.00227369]
[1642440572509,0.00284212,3205.5,3204.3,0.00397896]
[1642440572709,1.47239473,3205.3,3204.3,0.00397896]
[1642440573108,1.10055027,3205.2,3204.3,0.00397896]
[1642440573308,1.10055027,3205.2,3203.9,0.00625266]
[1642440573508,1.10055027,3205.2,3204.0,0.00568423]
[1642440573759,1.47239473,3205.1,3203.9,0.00625266]
[1642440573964,1.47239473,3205.1,3203.5,0.00852635]
[1642440574159,1.45658148,3204.7,3204.3,1.24269059]
[1642440574564,1.45658148,3204.7,3204.4,0.00341054]
[1642440574763,1.75658148,3204.7,3204.4,0.00341054]
[1642440574959,1.75658148,3204.7,3203.2,0.01023162]
[1642440575158,1.75658148,3204.7,3202.8,0.01250532]
[1642440575558,0.3,3204.7,3203.8,1.25615354]
[1642440575762,0.33964152,3204.7,3202.8,0.01250532]
[1642440575960,0.3,3204.7,3203.9,0.00625266]
[1642440576160,0.3,3204.8,3202.8,0.01250532]
[1642440576360,1.88621812,3204.9,3202.8,0.01250532]
[1642440576361,2.14739473,3204.9,3202.8,0.01250532]
[1642440576567,1.47239473,3204.3,3202.8,0.01250532]
[1642440576759,1.47239473,3204.3,3203.7,1.26277995]
[1642440576961,1.47239473,3204.3,3203.8,1.09989133]
[1642440577173,1.47239473,3204.3,3203.8,1.10671241]
[1642440577402,1.47239473,3204.3,3203.9,0.00625266]
[1642440577803,2.67035362,3204.2,3203.9,0.00625266]
[1642440579907,1.47239473,3204.4,3203.9,0.00625266]
[1642440580108,1.47239473,3204.4,3203.8,1.05614399]
[1642440580306,1.47239473,3204.4,3203.8,3.94164195]
[1642440580509,0.0022737,3204.3,3203.8,1.05614399]
[1642440580807,0.00170527,3204.2,3203.8,1.05614399]
[1642440581254,0.00113685,3204.1,3203.8,1.05614399]
[1642440581660,2.67035362,3204.3,3203.8,1.05614399]
[1642440582060,0.00170527,3204.2,3203.8,3.91536053]
[1642440582462,0.00113685,3204.1,3203.8,3.91536053]
[1642440582660,0.00113685,3204.1,3203.9,1.0]
[1642440582859,0.00170527,3204.2,3204.0,23.71398099]
[1642440583060,0.00170527,3204.2,3204.1,16.22070352]
[1642440583258,2.67035362,3204.3,3204.1,15.52070352]
[1642440583460,2.67035362,3204.3,3204.2,16.55208651]
[1642440583859,2.67035362,3204.3,3204.2,5.50208651]
[1642440583860,2.67262732,3204.3,3204.2,5.50208651]
[1642440584759,0.77019835,3204.3,3204.2,5.50208651]
[1642440585205,0.77019835,3204.3,3204.2,4.50208651]
[1642440585812,0.0022737,3204.3,3204.2,4.45208651]
[1642440586210,0.0022737,3204.3,3204.2,5.45208651]
[1642440586510,0.0022737,3204.3,3204.2,4.45208651]
[1642440586713,0.0022737,3204.3,3204.2,9.40872349]
[1642440586916,0.0022737,3204.3,3204.2,12.3700808]
[1642440587513,0.0022737,3204.3,3204.2,12.56979557]
[1642440587912,0.0022737,3204.3,3204.2,13.56979557]
[1642440588958,0.0022737,3204.3,3204.2,1.35872349]
[1642440589660,0.0022737,3204.3,3204.2,8.50872349]
[1642440590156,0.0022737,3204.3,3204.2,1.35872349]
[1642440591759,0.0022737,3204.3,3204.2,7.90872349]
[1642440591957,0.0022737,3204.3,3204.2,1.35872349]
[1642440592609,0.0022737,3204.3,3203.9,2.1749]
[1642440592810,0.0022737,3204.3,3204.1,0.52013525]
[1642440593013,0.00170527,3204.2,3204.1,0.52013525]
[1642440593614,0.00170527,3204.2,3204.1,6.47013525]
[1642440593816,2.20089113,3204.3,3204.2,17.5]
[1642440593817,0.68472461,3204.3,3204.2,17.5]
[1642440594215,1.47449428,3204.9,3204.2,18.8]
[1642440594415,1.47449428,3204.9,3204.2,17.8]
[1642440594616,0.00113685,3204.4,3204.3,17.6]
[1642440594822,0.00113685,3204.4,3204.3,36.48998]
[1642440595417,2.93699825,3205.6,3204.4,20.3]
[1642440595616,2.93699825,3205.6,3204.5,19.17049212]
[1642440595816,2.93699825,3205.6,3205.1,1.25813298]
[1642440596256,2.93699825,3205.6,3205.2,0.3]
[1642440596457,2.93699825,3205.6,3205.2,1.69994682]
[1642440596857,2.93699825,3206.1,3205.2,1.69994682]
[1642440597057,2.93699825,3206.1,3205.2,0.3]
[1642440597362,2.94666145,3206.1,3205.2,0.3]
[1642440597560,2.94666145,3206.1,3205.2,0.25]
[1642440597962,2.94666145,3206.1,3205.3,0.77981]
[1642440597963,0.0096632,3206.1,3205.3,0.77981]
[1642440598562,2.89666145,3206.3,3205.4,10.5]
[1642440598862,2.89666145,3206.3,3205.5,0.06310639]
[1642440599063,3.03486142,3206.5,3206.2,1.26998359]
[1642440599462,0.00170527,3206.4,3206.2,1.26998359]
[1642440599911,0.00113685,3206.3,3206.2,1.26998359]
[1642440600615,0.00113685,3206.3,3205.7,0.3]
[1642440600808,0.00113685,3206.3,3205.4,1.4543]
[1642440601010,0.00113685,3206.3,3204.9,3.6415]
[1642440601710,1.47514066,3205.6,3204.8,3.7977]
[1642440601910,1.47514066,3205.6,3205.1,1.5624273]
[1642440602109,0.81834199,3206.1,3205.1,1.5624273]
[1642440602311,0.81695875,3206.1,3205.1,1.5624273]
[1642440602517,1.11695875,3206.1,3205.1,1.5624273]
[1642440602713,0.3,3206.1,3205.1,1.5624273]
[1642440602914,2.21731285,3205.5,3205.1,1.5624273]
[1642440603217,2.51731285,3205.5,3204.3,3.7905]
[1642440603415,2.51731285,3205.5,3204.2,0.3]
[1642440603660,2.51731285,3205.5,3205.0,0.001]
[1642440603858,2.23010771,3205.6,3205.0,0.001]
[1642440604058,2.21731285,3205.6,3205.0,0.001]
[1642440604258,1.10612237,3205.5,3205.2,1.31664105]
[1642440604658,2.18618897,3205.5,3205.0,0.001]
[1642440604862,1.88618897,3205.5,3205.0,0.001]
[1642440605065,0.3,3205.4,3205.0,0.001]
[1642440605259,0.3,3205.4,3203.3,0.78024]
[1642440605260,20.8067,3205.4,3203.3,0.78024]
[1642440605460,20.8067,3205.4,3203.0,3.8921]
[1642440605658,2.10045135,3204.7,3204.6,1.19431318]
[1642440605859,0.7802864,3204.7,3203.4,1.16793401]
[1642440606059,1.0802864,3204.7,3203.4,1.16793401]
[1642440606259,0.3,3204.7,3203.5,0.01193689]
[1642440606459,1.5605728,3204.8,3203.5,0.01193689]
[1642440606758,1.43302562,3204.6,3204.5,1.2429596]
[1642440606959,1.43302562,3204.6,3203.5,0.01193689]
[1642440607159,1.43302562,3204.6,3203.3,1.1986]
[1642440607160,1.43302562,3204.6,3204.5,0.00625266]
[1642440607611,3.77788565,3204.8,3203.4,0.01250532]
[1642440607809,2.66950184,3204.6,3203.4,18.12250532]
[1642440608007,2.66950184,3204.6,3203.4,18.13481461]
[1642440608207,3.44976804,3204.6,3203.5,1.0]
[1642440608409,3.44976804,3204.6,3203.4,0.02481461]
[1642440608609,2.66950184,3204.6,3204.0,1.17835808]
[1642440608811,1.13084191,3204.4,3204.0,1.17835808]
[1642440609010,1.13084191,3204.4,3204.1,0.00852635]
[1642440609409,0.68891178,3204.2,3204.1,0.00852635]
[1642440610309,0.68891178,3204.2,3203.4,0.01250532]
[1642440610511,0.7803984,3204.0,3203.1,0.01421059]
[1642440610712,0.7803984,3204.0,3203.0,0.01477901]
[1642440611012,1.5608608,3204.1,3203.6,1.35825895]
[1642440611455,1.4671562,3203.9,3203.7,0.01080004]
[1642440611856,1.4671562,3203.9,3202.9,0.01534743]
[1642440612060,0.780491,3203.7,3203.0,0.01477901]
[1642440612260,0.780491,3203.7,3202.6,0.0170527]
[1642440612462,0.780491,3203.7,3203.1,1.2889638]
[1642440612463,1.13993414,3203.4,3203.1,1.2889638]
[1642440612766,1.080491,3203.7,3203.2,0.01364216]
[1642440612962,2.66950184,3204.0,3203.2,0.01364216]
[1642440613360,0.7804547,3203.8,3203.2,0.01364216]
[1642440613559,0.7804547,3203.8,3203.7,1.1113384]
[1642440613760,0.7804547,3203.8,3203.2,0.01364216]
[1642440613761,1.0804547,3203.8,3203.2,0.01364216]
[1642440613962,15.54085827,3203.8,3203.7,0.01080004]
[1642440614161,15.67905824,3203.8,3202.4,0.01818955]
[1642440614360,2.22905824,3203.8,3202.2,0.0193264]
[1642440614560,3.00966824,3203.8,3202.4,0.01818955]
[1642440614760,0.68891178,3203.0,3202.3,2.83652789]
[1642440615207,0.68891178,3203.0,3202.4,0.01818955]
[1642440615410,0.68891178,3203.0,3202.4,0.55240915]
[1642440615807,0.68891178,3203.0,3202.5,0.01762113]
[1642440616612,0.7806788,3202.9,3202.5,0.01762113]
[1642440616817,1.7420788,3202.9,3202.5,0.01762113]
[1642440617412,1.7420788,3202.9,3202.3,1.23026354]
[1642440617613,1.13905111,3202.6,3202.3,1.23026354]
[1642440617815,1.7420788,3202.9,3202.4,0.01818955]
[1642440618415,4.53287766,3202.8,3202.4,0.01818955]
[1642440618659,4.53287766,3202.8,3201.5,0.02330536]
[1642440618863,4.53287766,3202.8,3201.4,0.02387378]
[1642440619063,4.56746595,3202.8,3201.4,0.02387378]
[1642440619265,4.56746595,3202.8,3201.8,1.44965265]
[1642440619266,1.536785,3201.9,3201.8,1.44965265]
[1642440619476,1.536785,3201.9,3198.4,0.93794828]
[1642440619477,0.1,3200.0,3198.4,0.93794828]
[1642440619675,0.1,3200.0,3196.8,27.25448165]
[1642440619676,16.03819997,3199.9,3196.8,27.25448165]
[1642440619870,16.03819997,3199.9,3196.8,11.64778165]
[1642440619871,4.682,3199.6,3196.8,11.64778165]
[1642440620168,0.68891178,3198.7,3196.0,11.09317078]
[1642440620363,0.68891178,3198.7,3196.0,10.62939882]
[1642440620364,1.39260341,3196.2,3196.0,10.62939882]
[1642440620569,1.39260341,3196.2,3196.1,0.00454739]
[1642440620570,1.0907,3196.2,3196.1,0.00454739]
[1642440620767,0.9407,3196.2,3196.1,0.00454739]
[1642440620966,0.58980017,3196.2,3196.0,5.90144621]
[1642440621164,0.79101613,3196.3,3196.0,10.3]
[1642440621165,0.18938387,3196.3,3196.0,10.3]
[1642440621368,0.03562421,3197.2,3196.0,10.3]
[1642440621570,0.78211,3198.1,3197.7,1.13014336]
[1642440621571,0.45,3197.8,3197.7,1.13014336]
[1642440621767,3.5,3197.8,3196.3,0.07651145]
[1642440621966,3.5,3197.8,3196.9,1.0]
[1642440622167,0.00909478,3197.7,3197.0,3.07270684]
[1642440622413,0.00909478,3197.7,3197.1,1.40991361]
[1642440622613,0.00852635,3197.6,3197.1,1.34039109]
[1642440622813,0.00852635,3197.6,3197.5,1.39174846]
[1642440623011,3.07270684,3198.5,3197.5,1.39174846]
[1642440623012,0.03853602,3198.5,3197.5,1.39174846]
[1642440623219,9.79036223,3198.6,3197.5,1.39174846]
[1642440623413,0.01250532,3198.3,3197.6,3.07270684]
[1642440623610,0.01250532,3198.3,3197.5,1.39174846]
[1642440623611,0.01250532,3198.3,3197.7,12.8849262]
[1642440623813,0.01193689,3198.2,3197.7,12.8849262]
[1642440624213,0.01136847,3198.1,3197.7,12.8849262]
[1642440624417,0.68891178,3198.7,3198.0,20.25]
[1642440624618,4.8566755,3200.2,3198.5,1.4221138]
[1642440624619,4.88773034,3200.2,3198.5,1.4221138]
[1642440624815,4.88773034,3200.2,3198.6,3.07270684]
[1642440625016,4.8566755,3200.2,3198.7,0.45]
[1642440625217,1.20831827,3199.3,3198.8,3.07270684]
[1642440625416,0.35806659,3199.8,3199.0,0.08131846]
[1642440625617,4.8566755,3200.2,3199.2,0.07343236]
[1642440625820,4.8566755,3200.2,3199.3,0.45]
[1642440625821,0.00909478,3199.7,3199.3,0.45]
[1642440626015,0.05,3200.0,3199.5,20.25]
[1642440626260,0.05,3200.0,3199.6,2.09468006]
[1642440626461,0.00113684,3199.9,3199.7,0.45]
[1642440627863,0.00113684,3199.9,3199.5,0.00113685]
[1642440628666,0.81608114,3199.8,3199.7,1.3389149]
[1642440628866,0.81608114,3199.8,3199.5,0.00113685]
[1642440629772,4.90835891,3199.8,3199.5,0.00113685]
[1642440630015,0.01271855,3199.6,3198.9,7.0975]
[1642440630216,13.96203193,3199.0,3198.9,7.0975]
[1642440630512,14.26203193,3199.0,3197.9,6.8282]
[1642440630915,1.4010933,3199.0,3198.0,0.00852635]
[1642440631316,1.08906137,3199.0,3198.0,0.00852635]
[1642440631815,1.08906137,3199.0,3198.1,1.41108841]
[1642440632116,2.67420238,3198.9,3198.2,0.00738951]
[1642440632415,2.67420238,3198.9,3198.8,1.44764629]
[1642440632416,3.76326375,3198.9,3198.8,1.44764629]
[1642440632816,3.76326375,3198.9,3198.8,1.45162525]
[1642440634660,3.76326375,3198.9,3198.8,0.00397896]
[1642440635060,3.76326375,3198.9,3198.1,0.00795793]
[1642440635863,3.76326375,3198.9,3198.8,1.26630605]
[1642440636266,3.76326375,3198.9,3198.8,0.00397896]
[1642440636464,1.08906137,3198.9,3198.8,0.00397896]
[1642440636663,1.08906137,3198.9,3198.1,0.00795793]
[1642440637065,0.01216007,3198.5,3198.1,0.00795793]
[1642440637265,0.79404817,3198.5,3198.1,0.00795793]
[1642440637508,2.21517423,3198.5,3198.1,0.00795793]
[1642440637707,1.22454922,3198.4,3198.1,0.00795793]
[1642440637909,15.9,3198.3,3197.9,0.57948773]
[1642440638109,15.9,3198.3,3196.6,12.0024]
[1642440638110,0.79457032,3198.0,3196.6,12.0024]
[1642440638312,1.0388164,3197.7,3196.6,12.0024]
[1642440638610,1.07858086,3197.7,3196.9,1.5525117]
[1642440638816,2.16764223,3197.7,3196.7,0.00795793]
[1642440639013,1.23516066,3197.3,3197.0,0.00625266]
[1642440639213,2.16764223,3197.7,3196.6,11.90865266]
[1642440639412,0.00113685,3197.2,3196.7,0.00170527]